Cogmind - Beta 17 @@@ ROGUE MODE // 2026.07.05 @ 14:47:19 Player: arcadio rl Result: Destroyed by Explosive Trap Performance ------------- Evolutions (0) 0 Regions Visited (2) 400 Robots Destroyed (8) 40 Value Destroyed (181) 181 Prototype IDs (3) 60 Alien Tech Used (0) 0 Bonus (0) 0 TOTAL SCORE: 681 Bonus ------- None Cogmind --------- Core Integrity 0/250 Matter 295/300 Energy 99/100 System Corruption 0% Temperature Cool (0) Movement Core (50) Location -10/Mines Parts ------- > --- POWER (1) -------- (None) > --- PROPULSION (2) --- (None) > --- UTILITY (2) ------ Signal Interpreter > --- WEAPON (2) ------- (None) > --- INVENTORY (5) ---- Aluminum Leg Aluminum Leg Small Storage Unit Datajack Shock Trap Peak State ------------ > --- POWER ------------ Ion Engine > --- PROPULSION ------- Compact Wheel Compact Wheel > --- UTILITY ---------- Heat Sink Huge Storage Unit > --- WEAPON ----------- Small Laser Beam Cannon > --- INVENTORY -------- Ion Engine Light Treads Light Treads Aluminum Leg Aluminum Leg Compact Wheel Heat Sink Small Storage Unit Assault Rifle Datajack [Rating: 8] Favorites ----------- Power Ion Engine Engine Ion Engine Propulsion Aluminum Leg Treads Light Treads Leg Aluminum Leg Wheel Wheel Utility Heat Sink Device Heat Sink Storage Small Storage Unit Processor Signal Interpreter Weapon Small Laser Energy Gun Small Laser Energy Cannon Beam Cannon Ballistic Gun Assault Rifle Build | -11 -10 -10 ------- Run | Yrd Mat Min Slots Evolved . | . . . Power . | . . . Propulsion . | . . . Utility . | . . . Weapon . | . . . Parts Attached 20 | 6 9 5 Power 2 | 1 1 . Engine 2 | 1 1 . Core . | . . . Reactor . | . . . Propulsion 9 | 2 4 3 Treads 2 | . 2 . Leg 2 | . 2 . Wheel 5 | 2 . 3 Hover . | . . . Flight . | . . . Utility 5 | 1 2 2 Device 2 | . 2 . Storage 2 | 1 . 1 Processor 1 | . . 1 Hackware . | . . . Protection . | . . . Artifact . | . . . Weapon 4 | 2 2 . Energy Gun 1 | . 1 . Energy Cannon 1 | . 1 . Ballistic Gun 2 | 2 . . Ballistic Cannon . | . . . Launcher . | . . . Special Weapon . | . . . Impact Weapon . | . . . Slashing Weapon . | . . . Piercing Weapon . | . . . Special Melee Weapon . | . . . Unidentified Prototypes . | . . . Parts Lost 9 | . 2 7 Power 1 | . . 1 Propulsion 5 | . 2 3 Utility 1 | . . 1 Weapon 2 | . . 2 Highest Loss Streak 6 | . 2 6 To Critical Strikes . | . . . Average Backups 7 | 3 7 7 Power 1 | . 1 . Propulsion 3 | 2 3 3 Utility 1 | . . 1 Weapon . | . . . Tool/Special . | . . . Unused Backups 6 | . 2 4 Power 2 | . 1 1 Propulsion 1 | . . 1 Utility 2 | . 1 1 Weapon . | . . . Tool/Special 1 | . . 1 Average Slot Usage (%) 90 | . 99 72 Engine 12 | . 14 9 Treads 1 | . 2 . Leg 12 | . 14 9 Wheel 10 | . 11 9 Device 12 | . 13 9 Storage 12 | . 14 9 Energy Gun 12 | . 12 14 Energy Cannon 10 | . 10 9 Ballistic Gun 3 | . 4 . Peak Build Rating 8 | 6 7 8 Average Rating 6 | 4 6 5 On Entrance 4 | . 6 7 Avg Prop Armor Cover (%) . | . . . Naked Turns . | . . . Heaviest Build 90 | 13 15 90 Greatest Support 40 | 20 40 32 Greatest Overweight (x) 5 | 1 . 5 Average Overweight (x) . | . . . Largest Inventory Capacity 25 | 8 8 25 Average Capacity 9 | 7 8 12 Most Carried 12 | 6 8 12 Average Carried 7 | 3 7 8 Final Capacity 8 | 8 8 5 Final Carried 8 | 6 8 5 Class Distribution -------------------- 90% | Mutant 9% | Scavenger-Mutant Dominant Class ---------------- Mutant | -10/Materials Mutant | -10/Mines Resources | -11 -10 -10 ----------- Run | Yrd Mat Min Matter Collected 430 | 219 166 45 Remotely . | . . . Salvage Created 444 | . 307 137 Parts 17 | . 12 5 Haulers Intercepted . | . . . Recyclers Shooed . | . . . Parts Field Recycled . | . . . Retrieved Matter . | . . . Parts Self-Destructed . | . . . Prevented . | . . . Parts Restored . | . . . Kills | -11 -10 -10 ------- Run | Yrd Mat Min Combat Hostiles Destroyed 4 | . 4 . Guns 1 | . 1 . Cannons 3 | . 3 . Classes Destroyed 3 | . 3 . Worker 1 | . 1 . Recycler 3 | . 1 2 Grunt 4 | . 4 . Best Kill Streak 4 | . 4 2 Combat Bots Only 4 | . 4 . Max Kills in Single Turn 1 | . 1 1 Gunslinging . | . . . Exploded . | . . . Melee . | . . . Uniques/NPCs Destroyed . | . . . Combat | -11 -10 -10 -------- Run | Yrd Mat Min Hostile Shots Fired 51 | . 39 12 Missed 6 | . 6 . Hits 45 | . 33 12 Projectile 45 | . 33 12 AOE 12 | . . 12 Critical Strikes 4 | . 4 . Damage Taken 947 | . 447 500 Core 253 | . 87 166 Absorbed by Shields . | . . . Core Remaining (%) 100 | 100 . . Volleys Fired 29 | . 24 5 Largest 2 | . 2 2 Hottest 100 | . 100 100 Shots Fired 58 | . 48 10 Gun 29 | . 24 5 Cannon 29 | . 24 5 Launcher . | . . . Special . | . . . Kinetic . | . . . Thermal 58 | . 48 10 Explosive . | . . . Electromagnetic . | . . . Robot Hit Streak 13 | . 13 6 Robot Miss Streak 2 | . 2 2 Penetration Max . | . . . Secondary Targets . | . . . Shots Hit Robots 37 | . 30 7 Core Hits 13 | . 11 2 Critical Kills . | . . . Critical Parts Destroyed . | . . . Critical Strikes . | . . . Melee Attacks . | . . . Impact . | . . . Slashing . | . . . Piercing . | . . . Sneak Attacks . | . . . Combat Hostiles . | . . . Follow-up Attacks . | . . . Damage Inflicted 534 | . 430 104 Guns 217 | . 182 35 Cannons 317 | . 248 69 Explosions . | . . . Melee . | . . . Ramming . | . . . Kinetic . | . . . Thermal 534 | . 430 104 Explosive . | . . . Electromagnetic . | . . . Impact . | . . . Slashing . | . . . Piercing . | . . . Highest Corruption . | . . . Average Corruption . | . . . Corruption Purged . | . . . Corruption Blocked . | . . . Overload Shots . | . . . Overflow Damage 8 | . 8 . Projectiles 8 | . 8 . Explosions . | . . . Melee . | . . . Knockbacks . | . . . Impact . | . . . Kinetic . | . . . Secondary . | . . . Self-Inflicted Damage . | . . . Shots . | . . . Rammed . | . . . Targets Rammed . | . . . Kicked . | . . . Crushed . | . . . Highest Temperature 390 | . 390 27 Average Temperature 129 | . 149 13 Received Heat Transfer 333 | . 333 . Effects 2 | . 2 . Shutdowns 1 | . 1 . Matter Decay 1 | . 1 . Siege Activations . | . . . Martial Activations . | . . . Shielding Activations . | . . . Robots Disrupted . | . . . Combat Hostiles . | . . . Robots Corrupted . | . . . Combat Hostiles . | . . . Parts Fried . | . . . Impact Corruptions . | . . . Robots Melted . | . . . Combat Hostiles . | . . . Parts Melted 2 | . 2 . Heat Transferred 1141 | . 918 223 Parts Sabotaged . | . . . Parts Stolen . | . . . Parts Stripped . | . . . Power Chain Reactions . | . . . Alert | -11 -10 -10 ------- Run | Yrd Mat Min Maximum Alert Level . | . . . Low Security (%) 100 | 100 100 100 Level 1 . | . . . Level 2 . | . . . Level 3 . | . . . Level 4 . | . . . Level 5 . | . . . High Security . | . . . Max Security . | . . . Peak Influence 61 | . 61 30 Initial . | . . . Average 8 | . 10 5 Influence Increases 229 | . 159 70 Destroy 0b10 Robot/C 80 | . 80 . Destroy 0b10 Robot/NC 20 | . 10 10 Destroy Leader 20 | . 20 . Successful Hack 31 | . 31 . Destroy Structure 3 | . 3 . Partial Spotted 15 | . 15 . Lose Combat Pursuer 60 | . . 60 Influence Decreases 219 | . 159 60 Time Decay 189 | . 139 50 Lost Part 30 | . 20 10 Squads Dispatched 1 | . 1 . Investigation . | . . . Extermination . | . . . Reinforcement 1 | . 1 . Assault . | . . . Garrison . | . . . Intercept . | . . . Searches Triggered . | . . . Construction Impeded . | . . . Haulers Reinforced . | . . . Active Scanning Responses . | . . . Cargo Convoy Interrupts . | . . . Stealth | -11 -10 -10 --------- Run | Yrd Mat Min Distress Signals . | . . . Communications Jammed . | . . . Distress Signals . | . . . Times Spotted 13 | . 10 3 Peak Tracking Total 4 | . 4 2 Tactical Retreats 2 | . . 2 Traps | -11 -10 -10 ------- Run | Yrd Mat Min Traps Triggered 2 | . 1 1 Indirectly . | . . . Trap Hack Attempts . | . . . Triggered . | . . . Disarmed . | . . . Reprogrammed . | . . . Reused . | . . . Traps Extracted . | . . . Installed . | . . . Triggered . | . . . Most Traps Carried 1 | . . 1 Machines | -11 -10 -10 ---------- Run | Yrd Mat Min Machines Disabled . | . . . Max in Single Turn . | . . . Machines Repaired . | . . . Machines Dismantled . | . . . Machines Sabotaged . | . . . Overloaded Fab Kills . | . . . Hacking | -11 -10 -10 --------- Run | Yrd Mat Min Machines Accessed 9 | . 8 1 Terminals 7 | . 7 . Fabricators . | . . . Repair Stations . | . . . Recycling Units 1 | . 1 . Scanalyzers . | . . . Garrison Access . | . . . Total Hacks 27 | . 26 1 Successful 18 | . 17 1 Failed 9 | . 9 . Catastrophic 1 | . 1 . Database Lockouts . | . . . Manual 19 | . 19 . Terminals 24 | . 24 . Fabricators . | . . . Repair Stations . | . . . Recycling Units 2 | . 2 . Scanalyzers . | . . . Garrison Access . | . . . Terminal Hacks 11 | . 10 1 Robot Analysis 3 | . 3 . Prototype ID Bank 2 | . 2 . Open Door 1 | . . 1 Terminal Index 1 | . 1 . Locate Traps 3 | . 3 . Patrol Status 1 | . 1 . Fabricator Hacks . | . . . Repair Station Hacks . | . . . Recycling Unit Hacks . | . . . Scanalyzer . | . . . Garrison Access Hacks . | . . . Unauthorized Hacks 7 | . 7 . Terminals 5 | . 5 . Assimilate 2 | . 2 . Botnet 2 | . 2 . Operators 1 | . 1 . Fabricators . | . . . Repair Stations . | . . . Recycling Units 2 | . 2 . Monitor 1 | . 1 . Mask 1 | . 1 . Scanalyzers . | . . . Garrison Access . | . . . Data Cores Recovered . | . . . Used . | . . . Hacking Detections 8 | . 8 . Full Trace Events 1 | . 1 . Feedback Events . | . . . Feedback Blocked . | . . . Robot Schematics Acquired . | . . . Robots Built . | . . . Authchips . | . . . Time . | . . . Total Robot Build Rating . | . . . Part Schematics Acquired . | . . . Parts Built . | . . . Authchips . | . . . Time . | . . . Total Part Build Rating . | . . . Part Studies Acquired . | . . . Parts Repaired . | . . . Time . | . . . Parts Recycled . | . . . Recycled Matter . | . . . Retrieved Matter . | . . . Retrieved Components . | . . . Parts Scanalyzed . | . . . Part Schematics Acquired . | . . . Parts Damaged . | . . . Bothacking | -11 -10 -10 ------------ Run | Yrd Mat Min Used RIF Installer . | . . . Robots Hacked . | . . . Non-combat . | . . . Combat . | . . . Robot Hacks Applied . | . . . Relay Couplers Released . | . . . Fabnet Peak Effective % . | . . . Robots Rewired . | . . . Allies Hacked . | . . . Hacks Repelled . | . . . Allies | -11 -10 -10 -------- Run | Yrd Mat Min Total Allies 1 | . 1 . Largest Group 1 | . 1 . Highest-Rated Group 10 | . 10 . Highest-Rated Ally 10 | . 10 . Total Orders . | . . . Ally Attacks . | . . . Total Damage . | . . . Kills . | . . . Allies Corrupted . | . . . Allies Melted . | . . . Intel | -11 -10 -10 ------- Run | Yrd Mat Min Active Infowar (turns) . | . . . Robot Analysis Total 3 | . 3 . Derelict Logs Recovered 1 | . . 1 Drone Launches . | . . . Drone Recoveries . | . . . Exploration | -11 -10 -10 ------------- Run | Yrd Mat Min Turns Passed 936 | 57 573 306 Spaces Moved 777 | 53 398 326 Core 199 | 2 . 197 Treads 15 | . 15 . Legs 268 | . 209 59 Wheels 295 | 51 174 70 Hover . | . . . Flight . | . . . Fastest Speed 50 | 50 80 50 Average Speed 92 | 79 104 79 Slowest Speed 175 | 100 160 175 Overloaded Moves . | . . . Propulsion Burnouts . | . . . Robots Hopped . | . . . Potential Cave-ins . | . . . Cave-ins Triggered . | . . . Exploration Rate (%) 42 | 3 54 69 Regions Visited 2 Branch Regions 1 Pre-discovered Areas 1 | . . 1 Known Exits Taken . | . . . Unknown Exits Taken 2 | 1 1 . Scrap Searched 1 | . . 1 Spaces Dug . | . . . Terrain Destroyed . | . . . Melee . | . . . Projectile . | . . . AOE . | . . . Terrain Rammed . | . . . Walls Destroyed . | . . . Machines Disabled . | . . . Actions | -11 -10 -10 --------- Run | Yrd Mat Min Total 933 | 64 507 362 Wait 82 | . 67 15 Move 775 | 52 397 326 Hop . | . . . Pick Up 15 | 6 6 3 Fast Attach 10 | 6 1 3 Attach 6 | . 3 3 Detach 2 | . . 2 Swap 7 | . 6 1 Drop 7 | . 3 4 Fire 29 | . 24 5 Melee . | . . . Ram . | . . . Kick . | . . . Crush . | . . . Escape Stasis . | . . . Rewire . | . . . Trap . | . . . Miscellaneous . | . . . Route ------- -11/Scrapyard -10/Materials (discovered 3 exits: [*Mat] / *Min / [*Sub]) -10/Mines (discovered 1 exit: [*Mat]) History --------- Turn | Location | Event 12 | -11/Scrapyard | Discovered new exit (range 15) 58 | -11/Scrapyard | Entered Materials 305 | -10/Materials | Build established: Mutant 464 | -10/Materials | Discovered new exit (range 7) 501 | -10/Materials | Discovered new exit (range 8) 518 | -10/Materials | Discovered new exit (range 12) 631 | -10/Materials | Entered Mines 647 | -10/Mines | Discovered new exit (range 16) 654 | -10/Mines | Learned location of Storage (-9) 775 | -10/Mines | Assembled infested the area 780 | -10/Mines | Assisted by a Guerilla fighting off Assembled 828 | -10/Mines | Core integrity fell below 50% 837 | -10/Mines | Core integrity fell below 20% 845 | -10/Mines | Found a hidden stash of uninstalled traps 865 | -10/Mines | Lost 6 parts (1p3n1u1w) 902 | -10/Mines | Learned 2 Materials zone layouts 936 | -10/Mines | Met a Derelict who couldn't figure out how to use a Trap Extractor 937 | -10/Mines | Destroyed by Explosive Trap Last Messages --------------- their mining defense operations..." 00858_ 8D-8OJ(g) slips into the shadows. 00859_ K-01 Serf collects debris. 00902_ Acquired derelict log, extracted data. Data stored: Materials zone layouts (x2). 00905_ Acquired Signal Interpreter. 00909_ K-01 Serf collects debris. 00935_ Connecting with SHOP.Sys... 00935_ Current location identified: Mines >>Open Door Sealed Doors opened. 00936_ EU-CO1(g): "So I found this thing but I have no idea how to use it. And who the hell trapped this place to begin with?!" 00936_ EU-CO1(g): "I give up! Here you try, I'm outta here before something nasty happens..." 00936_ Tosses Imp. Trap Extractor to the ground. 00937_ Triggered Explosive Trap. 00937_ An explosion rips through the floor. 00937_ Sml. Laser destroyed. Map ----- +----------------------------------------------------+ | ????????????????????????????????? | | ?????????????#########??????????? | | ?????????##### ##?????????? | | ????????## ##????????? | | ????????# < ########## | | ????????# | | ????????## #### ######## ## | | ?????????####??## #######?# #? | | ????????????????####### ### #? | | ?????????????????????# ## #? | | ?????????????????????# #? | | ?????????????????????## #####? | | ??????????????????????## ##????? | | ???????????????????????###??????? | | ????????????????????????????????? | | ????????????????????????????????? | | ????????????????????????????????? | | ????????????????????????????????? | | ????????????????????????????????? | | ????????????????????????????????? | | ????????????????????????????????? | | ????????????????????????????????? | | ???########?????????????????????? | | ???#""""""#????????????????????## | | ???#!!/!!!#???????????????????## | | ????# !^@#??????????????? ## ## | | ????#!g !#?????????????? | | ???### ###????????????? | | ???# X ##???????????????###### | | ???# ######## ????????? | | ???# ????????? | | ???# $ ????????? | | ???# ########### ?????????? | | ???# #????????????????????? | | ??## #????????????????????? | | ??# #????????????????????? | | ??# #######????????????????????? | | ??# #??????????????????????????? | | ??# #######????????????????????? | | ??# #????????????????????? | | ??# ##### #????????????????????? | | ??# #??????????????????????????? | | ??# #??????????????????????????? | | ??# #??????????????????????????? | | ??# #??????????????????????????? | | ??# #??????????????????????????? | | ??# ##?????????????????????????? | | ??# ##????????????????????????? | | ??# ###??????????????????????? | | ??# ##?????????????????????? | +----------------------------------------------------+ Best States ------------- Heat Dissipation 35 Energy Generation 10 Energy Capacity 250 Matter Stores 300 Matter Capacity 300 Sight Range 16 Terrain Scan Density 10 Evasion (%) 55 Recoil Reduction 2 Item Schematics ----------------- None Robot Schematics ------------------ None Fabricated ------------ Nothing Repaired ---------- Nothing Studied --------- None Alien Tech Used ----------------- None Achievements -------------- Myspace Challenges ------------ None Game ------ Seed ReactionSigixFemtoactuators Manual? 0 Play Time 00:23:26 Cumulative 141.1 hours Start 2026.07.02 @ 21:17:50 End 2026.07.05 @ 14:47:19 Sessions 2 Manual Loads 0 Difficulty Rogue Special Mode None Game No. 116 Rogue 116 Adventurer 0 Explorer 0 Win Type - Total 0 Types 0/0/0/0/0/0/0/0/0/0 Lore% 49 Gallery% 48 Achievement% 29 Wizard Run 0 Options --------- Layout 1 ASCII 0 Keyboard 1 Movement Numpad Keybinds 0 Fullscreen 1 Font 24/Smallcaps Map View 50x35 Zoom Use 0% Tactical HUD 1 Map Filters NONE Filters NONE Steam 1 RUN: 977f89a4-6a34-4296-8429-615639bd4d80